[Event "FIDE WY-U16 Olympiad 2022"]
[Site "Nakhchivan"]
[Date "2022.10.05"]
[Round "4.23"]
[White "Iunusov, Nuriddin"]
[Black "Hernandez Izquierdo, Jose A."]
[Result "1/2-1/2"]
[ECO "B43"]
[WhiteElo "1940"]
[BlackElo "2140"]
[Annotator "TA"]
[PlyCount "62"]
[EventDate "2022.10.02"]
[EventType "team-tourn"]
[EventCountry "AZE"]
[SourceTitle "playchess.com"]
[Source "ChessBase"]
[SourceQuality "1"]
[WhiteTeam "Kyrgyzstan"]
[BlackTeam "Cuba"]
[WhiteTeamCountry "KGZ"]
[BlackTeamCountry "CUB"]
[TimeControl "40/5400+30:1800+30"]

{[%evp 14,62,58,59,88,91,81,82,113,114,210,78,41,16,49,42,76,75,77,77,67,68,52,36,41,40,78,77,84,37,66,-60,-68,-69,-37,-47,0,0,0,0,0,0,0,0,0,0,0,0,0,0,0]} 1. e4 {[%emt 0:00:47] ChessBase II} c5 {[%emt 0:00:13]} 2. Nf3 {[%emt 0:00:17]} e6 {[%emt 0:00:16]} 3. Nc3 {[%emt 0:00:56]} a6 {[%emt 0:00:28]} 4. d4 {[%emt 0:00:45]} cxd4 {[%emt 0:00:06]} 5. Nxd4 {[%emt 0:00:06]} Qc7 {[%emt 0:00:06]} 6. g3 {[%emt 0:00:54]} b5 {[%emt 0:02:15]} 7. Bg2 {[%emt 0:01:28]} Bb7 {[%emt 0:00:32]} 8. O-O {[%emt 0:00:34]} Be7 {[%emt 0:02:16] 8...d6 gains popularity. B43: Sicilian: Kan Variation: 5 Nc3.} 9. Re1 $1 {[%emt 0:03:52][%cal Oc3d5]} d6 {[%emt 0:01:53]} 10. a4 {[%emt 0:20:44] White is more active.} bxa4 {[%emt 0:12:55] White is better.} 11. Rxa4 {[%emt 0:21:21]} Nf6 {[%emt 0:01:58]} (11... Nd7 $16) 12. Nb3 {[%emt 0:10:10]} (12. Rb4 $1 $18 {[%cal Rb4b7] and White stays clearly on top. And now Rxb7! would win.} Ng8 13. Qe2) 12... Nc6 {[%emt 0:04:03]} 13. Bf4 {[%emt 0:04:28] [#]} Ne5 $146 {[%emt 0:09:39]} ({Predecessor:} 13... O-O 14. Qa1 Ng4 15. h3 Nge5 16. Rd1 f5 17. Nd4 Nxd4 18. Raxd4 Nf7 19. Qa2 Qc8 {½-½ (32) Bednarich,J (2305)-Nezar,M (2400) Luxembourg 2013 EXT 2017 [ChessBase II]}) 14. Qe2 {[%emt 0:04:45]} Rc8 {[%emt 0:04:08]} 15. Na5 {[%emt 0:01:56]} O-O {[%emt 0:02:49]} 16. Nxb7 {[%emt 0:02:44]} Qxb7 {[%emt 0:00:01]} 17. Ra2 {[%emt 0:01:21]} ({Don't play} 17. Rxa6 Qxb2 18. Nb5 Rxc2 $11) 17... a5 {[%emt 0:02:42]} 18. Bc1 {[%emt 0:03:31]} Bd8 {[%emt 0:03:01]} 19. Nb5 {[%emt 0:04:21]} Qe7 {[%emt 0:13:27]} 20. b3 {[%emt 0:01:42]} Bb6 {[%emt 0:02:25]} 21. h3 {[%emt 0:00:28] Against Nfg4} ({White should play} 21. Be3 $16 Bxe3 22. Qxe3) 21... Rfd8 $14 {[%emt 0:02:31]} 22. Kh2 {[%emt 0:01:14] [#]} (22. c4 $14) 22... Bxf2 $1 $15 {[%emt 0:01:53]} 23. Rd1 {[%emt 0:02:16]} ({Wrong is} 23. Qxf2 $2 Nfg4+ $1 {[%mdl 512]} 24. hxg4 Nxg4+ 25. Kg1 Nxf2 26. Kxf2 d5 $19) 23... h5 {[%emt 0:14:21][%cal Oh5h4]} 24. Bf4 {[%emt 0:02:27] Black must now prevent Bxe5.} ({Don't blunder} 24. Qxf2 $2 {[#]} Nfg4+ $1 {[%mdl 512]} 25. hxg4 Nxg4+ 26. Kg1 Nxf2 27. Kxf2 d5 $19) 24... Bc5 {[%emt 0:02:16]} (24... Bb6 $15 {deserves consideration.}) 25. Rxa5 $11 {[%emt 0:03:25] The position is equal.} Nfg4+ {[%emt 0:01:30]} 26. hxg4 {[%emt 0:00:29]} Nxg4+ {[%emt 0:00:05]} 27. Kh1 {[%emt 0:00:11]} e5 {[%emt 0:01:06]} 28. Bd2 {[%emt 0:02:24]} Nf2+ {[%emt 0:02:25]} 29. Kh2 {[%emt 0:00:04] aiming for Rf1.} Ng4+ {[%emt 0:09:54]} 30. Kh1 {[%emt 0:00:01] Threatens to win with Be1.} Nf2+ {[%emt 0:00:01]} 31. Kh2 {[%emt 0:00:06] Hoping for Rf1.} Ng4+ {[%emt 0:03:28] Weighted Error Value: White=0.17 (very precise) /Black=0.17 (very precise)} 1/2-1/2

[Event "FIDE WY-U16 Olympiad 2022"]
[Site "Nakhchivan"]
[Date "2022.10.05"]
[Round "4.24"]
[White "Caballero Ramos, Greter"]
[Black "Berdibaeva, Edisa"]
[Result "1-0"]
[ECO "B12"]
[WhiteElo "1912"]
[BlackElo "1617"]
[Annotator "TA"]
[PlyCount "55"]
[EventDate "2022.10.02"]
[EventType "team-tourn"]
[EventCountry "AZE"]
[SourceTitle "playchess.com"]
[Source "ChessBase"]
[SourceQuality "1"]
[WhiteTeam "Cuba"]
[BlackTeam "Kyrgyzstan"]
[WhiteTeamCountry "CUB"]
[BlackTeamCountry "KGZ"]
[TimeControl "40/5400+30:1800+30"]

{[%evp 9,55,-71,-47,-82,-57,-119,-57,-84,7,1,95,30,25,-86,0,-108,107,29,336,343,337,312,293,308,462,294,725,725,670,711,1158,1149,1148,1134,1088,1089,1604,806,1578,964,1524,1496,29987,409,29991,29992,29998,29999]} 1. e4 {[%emt 0:00:04]} c6 {[%emt 0:00:08]} 2. d4 {[%emt 0:00:18]} d5 {[%emt 0:00:10]} 3. f3 {[%emt 0:01:03]} Qb6 {[%emt 0:04:46]} 4. Nc3 {[%emt 0:00:56]} e6 {[%emt 0:00:33]} 5. Bd3 {[%emt 0:07:03] [#]} Qxd4 $146 {[%emt 0:18:49]} ({Predecessor:} 5... Nf6 6. Nge2 c5 7. exd5 Nxd5 8. O-O Nxc3 9. bxc3 Nc6 10. Kh1 Be7 11. Be3 Bd7 {0-1 (33) Beerdsen,T (2479)-Oparin,G (2652) Chess.com INT 2020}) 6. Qe2 {[%emt 0:20:33] B12: Caro-Kann: Advance Variation.} (6. exd5 exd5 7. Qe2+ Be7 8. Be3) 6... Ne7 {[%emt 0:15:22]} 7. Bf4 {[%emt 0:10:06]} (7. f4 $15) 7... Nd7 {[%emt 0:11:23]} (7... Qb6 $17 8. O-O-O d4) 8. O-O-O $15 {[%emt 0:01:47] Black is slightly better.} Qf6 {[%emt 0:02:20]} (8... Qb6 $17) 9. Nh3 $11 {[%emt 0:01:37]} e5 {[%emt 0:09:24] [#]} (9... g6 $11) 10. Bg5 {[%emt 0:03:42] White is more active.} (10. exd5 $1 $16 {[%cal Od3c4]} exf4 11. Rhe1) 10... Qe6 $1 {[%emt 0:00:29] And now ...d4 would win.} 11. f4 {[%emt 0:17:33]} (11. exd5 $11 Nxd5 12. Nxd5 cxd5 13. Rhe1) 11... f6 {[%emt 0:08:45]} (11... d4 $1 $17 {Strongly threatening ...f6.} 12. Bc4 Qg6) 12. Bh4 {[%emt 0:03:08]} (12. fxe5 $11 {remains equal.} fxg5 13. exd5 Qxe5 14. Qd2) 12... Nb6 $2 {[%emt 0:03:37]} (12... d4 $1 $17 {stays on course. aiming for ...Nb6.} 13. Bc4 Qd6) 13. fxe5 {[%emt 0:02:17]} ({Better is} 13. exd5 $1 $16 Nexd5 14. Nxd5 Nxd5 15. Rde1) 13... Qxe5 {[%emt 0:04:32][%mdl 8192] Loses the game.} (13... d4 $11 {and Black stays safe.} 14. exf6 gxf6 15. Qh5+ Qf7 16. Qxf7+ Kxf7) 14. Bg3 $18 {[%emt 0:01:02]} Qe6 {[%emt 0:00:33]} 15. Nf4 {[%emt 0:00:38][%mdl 64] Deflection} Qg4 {[%emt 0:01:05]} (15... Qe5 $2 16. Nfxd5 $1 {[%mdl 512]} Qg5+ 17. Bf4 $18) 16. Qf2 {[%emt 0:04:51]} (16. exd5 Qxe2 17. Bxe2 Bd7 $16) 16... Qg5 {[%emt 0:04:38]} (16... d4 $142) 17. Kb1 {[%emt 0:03:50]} Bd7 $2 {[%emt 0:04:15]} (17... d4) 18. h4 {[%emt 0:01:50]} Qh6 {[%emt 0:00:26]} 19. exd5 {[%emt 0:03:52]} O-O-O {[%emt 0:05:18]} 20. dxc6 {[%emt 0:03:10]} Nxc6 {[%emt 0:00:08]} 21. Nb5 {[%emt 0:00:26][%cal Of4d5] Intending Nd5! and mate.} f5 {[%emt 0:00:53]} 22. Rhe1 {[%emt 0:02:15][%cal Od3f5] Bxf5! is the strong threat.} Qf6 {[%emt 0:02:40]} 23. c3 {[%emt 0:02:31] Black must now prevent Bc2.} h6 {[%emt 0:00:52]} 24. h5 {[%emt 0:00:54]} Be7 {[%emt 0:00:30]} 25. Ng6 {[%emt 0:00:22]} Rhe8 {[%emt 0:00:21] [#]} 26. Ne5 {[%emt 0:00:29]} (26. Nxa7+ $142 $1 {[%mdl 512]} Nxa7 27. Nxe7+ Rxe7 28. Qf4 Re5 29. Rxe5 Bc6 30. Bxf5+ Qxf5+ 31. Qxf5+ Nd7 32. Ra5) 26... Na4 {[%emt 0:00:53]} (26... f4 $18 27. Bxf4 Bf5) 27. Nxc6 {[%emt 0:00:27][%cal Rc6a7]} Bc5 {[%emt 0:00:36]} 28. Ncxa7+ {[%emt 0:00:18] Weighted Error Value: White=0.91/Black=1.39} 1-0

[Event "FIDE WY-U16 Olympiad 2022"]
[Site "Nakhchivan"]
[Date "2022.10.05"]
[Round "4.24"]
[White "Goliath, Brimarion"]
[Black "Maklakova, Naomi"]
[Result "0-1"]
[ECO "C73"]
[WhiteElo "1394"]
[BlackElo "1625"]
[Annotator "NA RC COMBH"]
[PlyCount "170"]
[EventDate "2022.10.02"]
[EventType "team-tourn"]
[EventCountry "AZE"]
[SourceTitle "playchess.com"]
[Source "ChessBase"]
[SourceQuality "1"]
[WhiteTeam "South Africa"]
[BlackTeam "Latvia"]
[WhiteTeamCountry "RSA"]
[BlackTeamCountry "LAT"]
[TimeControl "40/5400+30:1800+30"]

1. e4 {[%emt 0:00:05]} e5 {[%emt 0:00:07]} 2. Nf3 {[%emt 0:00:12]} Nc6 {[%emt 0:00:06]} 3. Bb5 {[%emt 0:00:38]} a6 {[%emt 0:00:08]} 4. Ba4 {[%emt 0:00:21]} d6 {[%emt 0:00:04]} 5. Bxc6+ {[%emt 0:00:16]} bxc6 {[%emt 0:00:07]} 6. d4 {[%emt 0:00:13]} exd4 {[%emt 0:02:29]} 7. Nxd4 {[%emt 0:00:15]} c5 {[%emt 0:01:12]} 8. Nf3 {[%emt 0:02:42]} Bb7 {[%emt 0:05:31]} 9. Nc3 {[%emt 0:07:58]} Nf6 {[%emt 0:00:37]} 10. Bg5 {[%emt 0:05:43]} Be7 {[%emt 0:00:47]} 11. Qe2 {[%emt 0:01:37]} O-O {[%emt 0:04:40]} 12. O-O {[%emt 0:00:36]} Re8 {[%emt 0:02:41]} 13. Nd2 {[%emt 0:05:25]} Nxe4 {[%emt 0:05:55]} 14. Bxe7 {[%emt 0:00:34]} Nxc3 {[%emt 0:00:07]} 15. Qd3 {[%emt 0:04:56]} Rxe7 {[%emt 0:13:18]} 16. Qxc3 {[%emt 0:01:47]} Re6 {[%emt 0:06:17]} 17. Rfe1 {[%emt 0:02:26]} Rg6 {[%emt 0:03:23]} 18. f3 {[%emt 0:00:50]} Qd7 {[%emt 0:13:51]} 19. Re2 {[%emt 0:00:30]} Bd5 {[%emt 0:07:44]} 20. Rae1 {[%emt 0:03:01]} Be6 {[%emt 0:01:09]} 21. Ne4 {[%emt 0:00:58]} Qb5 {[%emt 0:04:03]} 22. a3 {[%emt 0:02:42]} h6 {[%emt 0:01:14]} 23. Ng3 {[%emt 0:00:37]} d5 {[%emt 0:16:10]} 24. f4 {[%emt 0:01:45]} d4 {[%emt 0:00:16]} 25. Qf3 {[%emt 0:00:28]} Rd8 {[%emt 0:00:40]} 26. Qf2 {[%emt 0:05:08]} Bc4 {[%emt 0:02:47]} 27. Re7 {[%emt 0:00:59]} Re6 {[%emt 0:01:24]} 28. R1xe6 {[%emt 0:01:05]} Bxe6 {[%emt 0:00:18]} 29. f5 {[%emt 0:00:13]} Bd5 {[%emt 0:02:13]} 30. b3 {[%emt 0:00:47]} Re8 {[%emt 0:01:10]} 31. Qe1 {[%emt 0:01:45]} Kf8 {[%emt 0:00:27]} 32. Rxe8+ {[%emt 0:02:14]} Qxe8 {[%emt 0:00:02]} 33. Qa5 {[%emt 0:00:20]} Qc6 {[%emt 0:00:05]} 34. Qd2 {[%emt 0:00:40]} Qb6 {[%emt 0:01:15]} 35. Ne2 {[%emt 0:01:46]} Qc6 {[%emt 0:01:53]} 36. Ng3 {[%emt 0:00:50]} Kg8 {[%emt 0:00:13]} 37. Qf2 {[%emt 0:02:10]} Qf6 {[%emt 0:01:37]} 38. Qf4 {[%emt 0:01:26]} c6 {[%emt 0:00:27]} 39. Qf1 {[%emt 0:01:03]} a5 {[%emt 0:00:40]} 40. Qa6 {[%emt 0:00:28]} Qg5 {[%emt 0:01:17]} 41. Qe2 {[%emt 0:32:57]} Qc1+ {[%emt 0:31:06]} 42. Kf2 {[%emt 0:00:10]} Qf4+ {[%emt 0:00:25]} 43. Kg1 {[%emt 0:00:38]} Kh7 {[%emt 0:00:42]} 44. Qe1 {[%emt 0:00:42]} c4 {[%emt 0:00:20]} 45. bxc4 {[%emt 0:20:44]} Bxc4 46. h3 {[%emt 0:00:19]} d3 {[%emt 0:00:00]} 47. cxd3 {[%emt 0:00:00]} Bxd3 {[%emt 0:00:00]} 48. Qf2 {[%emt 0:00:00]} Qc1+ {[%emt 0:00:00]} 49. Kh2 {[%emt 0:00:00]} Qxa3 {[%emt 0:00:00]} 50. f6 {[%emt 0:00:00]} Qc3 {[%emt 0:00:00]} 51. fxg7 {[%emt 0:00:00]} Qxg7 {[%emt 0:00:00]} 52. Qc5 {[%emt 0:00:00]} Bg6 {[%emt 0:00:00]} 53. Qxa5 {[%emt 0:00:00]} Qd4 {[%emt 0:00:00]} 54. Ne2 {[%emt 0:00:00]} Qd6+ {[%emt 0:00:00]} 55. Kh1 {[%emt 0:00:00]} Qd1+ {[%emt 0:00:00]} 56. Ng1 {[%emt 0:00:00]} Qc1 {[%emt 0:00:00]} 57. Kh2 {[%emt 0:00:00]} Qf4+ {[%emt 0:00:00]} 58. Kh1 {[%emt 0:00:00]} Qf2 {[%emt 0:00:00]} 59. Qe5 {[%emt 0:00:00]} c5 {[%emt 0:00:00]} 60. Kh2 {[%emt 0:00:00]} c4 {[%emt 0:00:00]} 61. Nf3 {[%emt 0:00:00]} Qc2 {[%emt 0:05:32]} 62. h4 {[%emt 0:00:00]} Qf5 {[%emt 0:01:20]} 63. Qc7 {[%emt 0:00:00]} Qe4 {[%emt 0:01:27]} 64. Qc5 {[%emt 0:00:00]} Qf4+ {[%emt 0:00:15]} 65. Kg1 {[%emt 0:00:00]} Qc1+ {[%emt 0:00:17]} 66. Kf2 {[%emt 0:00:00]} c3 {[%emt 0:00:10]} 67. Qd5 {[%emt 0:00:00]} c2 {[%emt 0:00:21]} 68. h5 {[%emt 0:00:00]} Qf4 {[%emt 0:02:14]} 69. hxg6+ {[%emt 0:00:00]} Kg7 {[%emt 0:00:07]} 70. g3 {[%emt 0:00:00]} Qc7 {[%emt 0:01:58]} 71. Qd4+ {[%emt 0:05:31]} f6 {[%emt 0:00:07]} 72. Nh4 {[%emt 0:00:38]} c1=Q {[%emt 0:01:02]} 73. Nf5+ {[%emt 0:00:16]} Kxg6 {[%emt 0:00:21]} 74. Nh4+ {[%emt 0:00:37]} Kg7 {[%emt 0:00:01]} 75. Qg4+ {[%emt 0:01:00]} Qg5 {[%emt 0:00:13]} 76. Nf5+ {[%emt 0:00:12]} Kh7 {[%emt 0:00:05]} 77. Qe4 {[%emt 0:00:26]} Qg6 {[%emt 0:00:20]} 78. g4 {[%emt 0:00:45]} Qc5+ {[%emt 0:00:23]} 79. Kf1 {[%emt 0:00:35]} Qb5+ {[%emt 0:00:25]} 80. Kf2 {[%emt 0:00:13]} Qb2+ {[%emt 0:00:08]} 81. Kf1 {[%emt 0:00:16]} Qc1+ {[%emt 0:00:42]} 82. Kf2 {[%emt 0:00:18]} Qd2+ {[%emt 0:00:08]} 83. Kf1 {[%emt 0:00:17]} Qd1+ {[%emt 0:00:12]} 84. Kf2 {[%emt 0:00:14]} Qgxg4 {[%emt 0:01:44]} 85. Ne3+ {[%emt 0:01:17]} Qxe4 {[%emt 0:00:07]} 0-1

[Event "FIDE WY-U16 Olympiad 2022"]
[Site "Nakhchivan"]
[Date "2022.10.05"]
[Round "4.25"]
[White "Teh, Rui Gen"]
[Black "Caputcuoglu, Zeki Berke"]
[Result "0-1"]
[ECO "C41"]
[WhiteElo "1824"]
[BlackElo "2370"]
[Annotator "TA"]
[PlyCount "100"]
[EventDate "2022.10.02"]
[EventType "team-tourn"]
[EventCountry "AZE"]
[SourceTitle "playchess.com"]
[Source "ChessBase"]
[SourceQuality "1"]
[WhiteTeam "Malaysia"]
[BlackTeam "Turkey"]
[WhiteTeamCountry "MAS"]
[BlackTeamCountry "TUR"]
[TimeControl "40/5400+30:1800+30"]

{[%evp 14,100,32,15,29,10,19,2,15,10,35,35,33,42,41,29,62,46,70,31,78,70,64,51,75,25,33,46,18,14,93,0,0,0,0,0,0,0,0,-36,-31,-72,0,0,0,0,0,-90,-94,-95,-92,-106,0,-274,-259,-313,-310,-426,-59,-81,-28,-141,-134,-162,-167,-161,-158,-152,-134,-129,0,-138,-128,-1800,-154,-154,-145,-135,-128,-128,-135,-129,-128,-2277,-2175,-5214,-5189,-2629,-1846]} 1. e4 {[%emt 0:00:03]} e5 {[%emt 0:00:08]} 2. Nf3 {[%emt 0:00:13]} d6 {[%emt 0:00:22]} 3. d4 {[%emt 0:00:30]} exd4 {[%emt 0:00:05]} 4. Nxd4 {[%emt 0:00:07]} Nf6 {[%emt 0:00:05]} 5. Nc3 {[%emt 0:02:01]} Be7 {[%emt 0:00:17]} 6. Be2 {[%emt 0:06:25]} O-O {[%emt 0:00:15]} 7. O-O {[%emt 0:01:51]} Re8 {[%emt 0:00:18]} 8. Re1 {[%emt 0:02:20]} Bf8 {[%emt 0:00:28] C41: Philidor Defence.} 9. Bf3 {[%emt 0:04:10]} (9. Bc4 {with more complications.} Nbd7 10. Bg5 c6 11. a4) 9... h6 {[%emt 0:08:15] [#]} 10. g3 $146 {[%emt 0:12:15]} ({Predecessor:} 10. h3 Nbd7 11. g4 Nc5 12. Bg2 c6 13. Bf4 Qb6 14. Nb3 Ne6 15. Bg3 a5 16. a4 {1-0 (47) Palkovi,J (2426)-Marjanusic,V (2273) Subotica 2004}) 10... c5 {[%emt 0:02:29] The position is equal.} 11. Nde2 {[%emt 0:16:04][%cal Bd4e2,Be2f4,Bf4d5][%mdl 32]} Nc6 {[%emt 0:00:30][%cal Od6d5]} 12. Bg2 {[%emt 0:01:00]} Bd7 {[%emt 0:06:02]} 13. Nf4 {[%emt 0:13:28]} Ne5 {[%emt 0:05:19]} 14. b3 {[%emt 0:19:22]} g6 15. Bb2 {[%emt 0:04:21]} b5 {[%emt 0:17:16][%cal Bb7b5,Bb5b4][%mdl 32]} 16. Ncd5 {[%emt 0:11:50] aiming for Nxf6+.} Nxd5 {[%emt 0:04:18]} (16... Bc6 $14 {might be stronger.}) 17. Nxd5 $16 {[%emt 0:00:09] Threatens to win with f4.} Bg7 $1 {[%emt 0:00:05]} 18. Rb1 {[%emt 0:00:22]} b4 {[%emt 0:00:56]} 19. h3 {[%emt 0:01:13]} (19. Ne3 $16) 19... Nc6 {[%emt 0:01:29]} 20. Bxg7 {[%emt 0:00:57]} Kxg7 {[%emt 0:00:01]} 21. Qd2 {[%emt 0:00:29]} Nd4 {[%emt 0:01:12] [#]} (21... Be6 $11) 22. c3 {[%emt 0:00:47]} (22. Nxb4 $1 $16 Bxh3 23. c3) 22... bxc3 $11 {[%emt 0:01:24]} 23. Qxc3 {[%emt 0:00:09]} Bc6 {[%emt 0:00:38]} 24. Nf4 {[%emt 0:01:48]} Qf6 {[%emt 0:00:30]} 25. Rbd1 {[%emt 0:00:21]} a5 {[%emt 0:01:08] Prevents b4.} 26. Qd3 {[%emt 0:00:31]} Rab8 {[%emt 0:00:55]} 27. Qd2 {[%emt 0:00:38]} Rb5 {[%emt 0:03:01]} (27... a4 $17 28. Ne2 Nf3+ 29. Bxf3 Qxf3 30. Qc3+ Qxc3 31. Nxc3 axb3 32. Rxd6 Bxe4 $1 33. axb3 Ba8 34. Rxe8 Rxe8) 28. Ne2 {[%emt 0:00:27][%cal Re2d4]} Rb4 {[%emt 0:00:57]} 29. Nxd4 {[%emt 0:00:38]} Rxd4 {[%emt 0:00:07]} 30. Qxa5 {[%emt 0:00:18]} (30. Qc1 $11 {remains equal.}) 30... Ra8 $17 {[%emt 0:00:17]} ({But not} 30... Bxe4 31. Rxd4 Qxd4 32. Bxe4 Rxe4 33. Rxe4 Qxe4 34. Qc3+ Kf8 35. Qf6 $11) 31. Qc3 {[%emt 0:00:39]} Rxa2 {[%emt 0:01:04]} 32. Qe3 {[%emt 0:00:28]} Qe5 {[%emt 0:01:26]} ({Black should try} 32... Bb5 $17) 33. Rc1 $2 {[%mdl 8192]} (33. f4 $1 $11 {and White has nothing to worry.} Qf6 34. Rxd4 cxd4 35. Qd3) 33... Rdd2 $19 {[%emt 0:00:37]} 34. Rcd1 {[%emt 0:01:04]} Rdc2 {[%emt 0:03:13]} 35. Rc1 {[%emt 0:00:20]} Rxc1 {[%emt 0:00:24]} (35... Rxf2 $19 36. Bh1 Kg8) 36. Qxc1 {[%emt 0:00:39]} Qd4 {[%emt 0:02:25]} (36... Bd7 $17 37. Rd1 Be6) 37. Qf4 {[%emt 0:00:25]} (37. Qe3 $1 $11 {was the only way to keep the balance.}) 37... Ra1 $36 {[%emt 0:02:42][%mdl 2048] Keeping White busy.} 38. Rxa1 {[%emt 0:00:22]} Qxa1+ {[%emt 0:00:01][%mdl 4096] Endgame KQB-KQB} 39. Kh2 {[%emt 0:00:06] [#]} Qd4 {[%emt 0:00:47]} 40. h4 {[%emt 0:01:00]} Bd7 {[%emt 0:08:03]} 41. Bh3 {[%emt 0:30:33]} Bc6 {[%emt 0:32:25]} 42. Bg2 {[%emt 0:00:04]} h5 {[%emt 0:01:20]} 43. e5 $2 {[%emt 0:00:45][%mdl 8192] [#]} (43. Kg1 $17) 43... Bxg2 $2 {[%emt 0:00:00] Active counter play!} (43... Qxf4 $1 $19 {and Black stays clearly on top.} 44. gxf4 Bxg2 45. Kxg2 d5) 44. Qf6+ {[%emt 0:00:40]} Kg8 {[%emt 0:00:00] ( -> ...Bd5)} 45. Qd8+ {[%emt 0:00:26]} Kh7 {[%emt 0:00:00]} 46. Kxg2 {[%emt 0:00:12]} Qxe5 {[%emt 0:00:00]} 47. Qb6 {[%emt 0:00:41]} Kg7 {[%emt 0:00:00]} 48. Kf3 $2 {[%emt 0:00:33][%mdl 8192]} (48. Kf1 $17) 48... d5 $19 {[%emt 0:00:00][%csl Gd5][%cal Re5e4,Bd6d5,Bd5d4][%mdl 32] Black is clearly winning.} 49. Kg2 {[%emt 0:00:37]} d4 {[%emt 0:00:00]} 50. Qd8 {[%emt 0:00:20]} Qe4+ {[%emt 0:00:00] Weighted Error Value: White=0.66/Black=0.43} 0-1

[Event "FIDE WY-U16 Olympiad 2022"]
[Site "Nakhchivan"]
[Date "2022.10.05"]
[Round "4.25"]
[White "Nwedo, Khodani"]
[Black "Southcott-Moyers, Indy"]
[Result "1/2-1/2"]
[ECO "D18"]
[WhiteElo "1356"]
[BlackElo "1952"]
[Annotator "TA"]
[PlyCount "63"]
[EventDate "2022.10.02"]
[EventType "team-tourn"]
[EventCountry "AZE"]
[SourceTitle "playchess.com"]
[Source "ChessBase"]
[SourceQuality "1"]
[WhiteTeam "South Africa"]
[BlackTeam "England"]
[WhiteTeamCountry "RSA"]
[BlackTeamCountry "ENG"]
[TimeControl "40/5400+30:1800+30"]

{[%evp 27,63,6,21,26,28,28,29,33,31,29,30,30,25,0,31,10,23,-11,0,-31,-28,-28,31,32,31,31,35,30,30,30,31,31,47,30,43,30,31,31]} 1. d4 {[%emt 0:00:05]} d5 2. c4 {[%emt 0:00:15]} c6 {[%emt 0:00:05]} 3. Nf3 {[%emt 0:00:07]} Nf6 {[%emt 0:00:06]} 4. Nc3 {[%emt 0:00:07]} dxc4 {[%emt 0:00:17]} 5. a4 {[%emt 0:00:15]} Bf5 {[%emt 0:00:05][%cal Bc8f5,Bf5g6,Bg6h5][%mdl 32]} 6. e3 {[%emt 0:00:09][%cal Be2e3,Be3e4,Be4e5][%mdl 32]} e6 {[%emt 0:00:05]} 7. Bxc4 {[%emt 0:00:07]} Bb4 {[%emt 0:00:04]} 8. O-O {[%emt 0:00:16]} Nbd7 {[%emt 0:00:04]} 9. Qe2 {[%emt 0:00:21]} O-O {[%emt 0:00:09]} 10. e4 {[%emt 0:00:23]} Bg6 {[%emt 0:00:04]} 11. Bd3 {[%emt 0:00:13]} Bh5 {[%emt 0:00:12]} 12. e5 {[%emt 0:00:16]} Nd5 {[%emt 0:00:06]} 13. Nxd5 {[%emt 0:00:10]} cxd5 {[%emt 0:00:07]} 14. Qe3 {[%emt 0:00:08]} Be7 {[%emt 0:00:38]} 15. Ng5 {[%emt 0:00:25] D19: Slav Defence: 5 a4 Bf5 6 e3: Main line with 9 Qe2.} Bxg5 {[%emt 0:00:12]} 16. Qxg5 {[%emt 0:00:08]} Bg6 {[%emt 0:00:02]} 17. Be2 {[%emt 0:01:18] White has an edge.} Nb8 {[%emt 0:10:22][%cal Bd7b8,Bb8c6,Bc6b4][%mdl 32]} 18. Qxd8 {[%emt 0:00:29]} Rxd8 {[%emt 0:00:08]} 19. Be3 {[%emt 0:00:26]} Nc6 {[%emt 0:02:34]} 20. a5 {[%emt 0:01:15]} Rdc8 {[%emt 0:12:54]} 21. Rfc1 {[%emt 0:02:17]} Nb4 {[%emt 0:06:32] [#]} 22. Rxc8+ $146 {[%emt 0:13:29]} ({Predecessor:} 22. Rc3 Nc2 23. Rxc8+ Rxc8 24. Rc1 a6 25. Bd1 Kf8 26. Bxc2 Rxc2 27. Rxc2 {½-½ (27) Husemann,A (2091)-Kobryn,W (1936) LSS email 2013}) 22... Rxc8 {[%emt 0:00:06]} 23. Rc1 {[%emt 0:01:11]} Rxc1+ {[%emt 0:00:10]} 24. Bxc1 $15 {[%emt 0:00:08][%mdl 4096] Endgame KBB-KBN} a6 {[%emt 0:12:26]} ({Black should play} 24... Nc6 $11) 25. Bd2 $14 {[%emt 0:07:58]} Nc6 {[%emt 0:00:10]} 26. Bc3 {[%emt 0:00:45]} Bc2 {[%emt 0:01:43]} 27. Kf1 {[%emt 0:09:53]} Bb3 {[%emt 0:04:08]} 28. Ke1 {[%emt 0:01:08]} Bc4 {[%emt 0:02:39]} 29. Bd1 {[%emt 0:04:17]} h6 {[%emt 0:07:50]} 30. Bc2 {[%emt 0:02:25]} Bb5 {[%emt 0:06:25]} 31. g3 {[%emt 0:02:41]} h5 {[%emt 0:03:21]} 32. Kd2 {[%emt 0:03:32] Weighted Error Value: White=0.08 (flawless) /Black=0.10 (very precise)} 1/2-1/2